[Event "Titled Tuesday Blitz June 6 Early 2023"]
[White "Topalov, Aleksandar"]
[Black "Itgelt, Khuyagtsogt"]
[WhiteFideId "925659"]
[BlackFideId "4902912"]
[WhiteElo "2151"]
[BlackElo "2227"]
[Result "0-1"]
[Round "2"]
[TimeControl "180+2"]
[Date "2023.06.06"]
[WhiteClock "0:00:01"]
[BlackClock "0:00:20"]
[Board "72"]

1. b3 {[%clk 0:03:00]}  d5 {[%clk 0:02:57]} 2. Bb2 {[%clk 0:02:56]}  c6 {[%clk 0:02:57]} 3. Nf3 {[%clk 0:02:56]}  Nf6 {[%clk 0:02:57]} 4. g3 {[%clk 0:02:56]}  Bg4 {[%clk 0:02:57]} 5. Bg2 {[%clk 0:02:56]}  Nbd7 {[%clk 0:02:56]} 6. O-O {[%clk 0:02:55]}  e6 {[%clk 0:02:56]} 7. d3 {[%clk 0:02:55]}  h6 {[%clk 0:02:56]} 8. Nbd2 {[%clk 0:02:55]}  Be7 {[%clk 0:02:55]} 9. c4 {[%clk 0:02:55]}  O-O {[%clk 0:02:55]} 10. a3 {[%clk 0:02:53]}  Bf5 {[%clk 0:02:52]} 11. b4 {[%clk 0:02:50]}  Re8 {[%clk 0:02:49]} 12. Qb3 {[%clk 0:02:46]}  Bh7 {[%clk 0:02:45]} 13. Rfc1 {[%clk 0:02:46]}  a5 {[%clk 0:02:42]} 14. Bc3 {[%clk 0:02:34]}  Qc7 {[%clk 0:02:38]} 15. bxa5 {[%clk 0:02:30]}  Nc5 {[%clk 0:02:37]} 16. Qc2 {[%clk 0:02:27]}  Nfd7 {[%clk 0:02:29]} 17. Rab1 {[%clk 0:02:21]}  Bf8 {[%clk 0:02:28]} 18. Bh3 {[%clk 0:02:12]}  Ra7 {[%clk 0:02:17]} 19. Rb2 {[%clk 0:02:10]}  b6 {[%clk 0:01:46]} 20. axb6 {[%clk 0:01:31]}  Nxb6 {[%clk 0:01:47]} 21. Bb4 {[%clk 0:01:23]}  Nca4 {[%clk 0:01:36]} 22. c5 {[%clk 0:01:21]}  Nd7 {[%clk 0:01:32]} 23. Rbb1 {[%clk 0:01:20]}  Naxc5 {[%clk 0:01:24]} 24. Nd4 {[%clk 0:01:16]}  Rc8 {[%clk 0:01:17]} 25. Qa2 {[%clk 0:00:59]}  Ra6 {[%clk 0:01:12]} 26. Rc2 {[%clk 0:00:58]}  Qa7 {[%clk 0:00:58]} 27. Rbc1 {[%clk 0:00:55]}  Nxd3 {[%clk 0:00:55]} 28. exd3 {[%clk 0:00:39]}  Qxd4 {[%clk 0:00:50]} 29. Bxf8 {[%clk 0:00:29]}  Nxf8 {[%clk 0:00:49]} 30. Nb3 {[%clk 0:00:24]}  Qa7 {[%clk 0:00:31]} 31. Nc5 {[%clk 0:00:16]}  Rxa3 {[%clk 0:00:31]} 32. Qb2 {[%clk 0:00:16]}  Bxd3 {[%clk 0:00:30]} 33. Rd2 {[%clk 0:00:16]}  Bg6 {[%clk 0:00:28]} 34. Qe5 {[%clk 0:00:11]}  Ra8 {[%clk 0:00:26]} 35. Rdd1 {[%clk 0:00:09]}  Ra2 {[%clk 0:00:25]} 36. Bg2 {[%clk 0:00:06]}  Nd7 {[%clk 0:00:23]} 37. Qd6 {[%clk 0:00:03]}  Nxc5 {[%clk 0:00:22]} 38. Qxc5 {[%clk 0:00:03]}  Qxc5 {[%clk 0:00:22]} 39. Rxc5 {[%clk 0:00:03]}  Ra1 {[%clk 0:00:22]} 40. Rdc1 {[%clk 0:00:03]}  Rxc1+ {[%clk 0:00:22]} 41. Rxc1 {[%clk 0:00:03]}  Rc8 {[%clk 0:00:22]} 42. Bh3 {[%clk 0:00:03]}  c5 {[%clk 0:00:22]} 43. f4 {[%clk 0:00:03]}  Kf8 {[%clk 0:00:20]} 44. Bg2 {[%clk 0:00:02]}  Ke7 {[%clk 0:00:20]} 45. Ra1 {[%clk 0:00:01]}  Rc7 {[%clk 0:00:20]} 46. Ra8 {[%clk 0:00:01]}  c4 {[%clk 0:00:20]} 47. Kf2 {[%clk 0:00:01]}  c3 {[%clk 0:00:20]} 0-1


[Site "https://www.chess.com"]

[Event "Titled Tuesday Blitz June 6 Early 2023"]
[White "Koridze, Lile"]
[Black "Prestia, Paris"]
[WhiteFideId "13612514"]
[BlackFideId "30925959"]
[WhiteElo "2047"]
[BlackElo "2685"]
[Result "1/2-1/2"]
[Round "2"]
[TimeControl "180+2"]
[Date "2023.06.06"]
[WhiteClock "0:00:06"]
[BlackClock "0:00:31"]
[Board "74"]

1. d4 {[%clk 0:03:00]}  Nf6 {[%clk 0:02:59]} 2. c4 {[%clk 0:02:57]}  e6 {[%clk 0:02:58]} 3. Nf3 {[%clk 0:02:57]}  c5 {[%clk 0:02:54]} 4. d5 {[%clk 0:02:57]}  exd5 {[%clk 0:02:55]} 5. cxd5 {[%clk 0:02:56]}  d6 {[%clk 0:02:56]} 6. Nc3 {[%clk 0:02:56]}  g6 {[%clk 0:02:56]} 7. Nd2 {[%clk 0:02:57]}  Bg7 {[%clk 0:02:57]} 8. Nc4 {[%clk 0:02:57]}  O-O {[%clk 0:02:58]} 9. Bg5 {[%clk 0:02:57]}  a6 {[%clk 0:02:57]} 10. a4 {[%clk 0:02:56]}  Qc7 {[%clk 0:02:54]} 11. Qd2 {[%clk 0:01:56]}  Nbd7 {[%clk 0:02:46]} 12. Qf4 {[%clk 0:01:07]}  Ne5 {[%clk 0:02:19]} 13. Bxf6 {[%clk 0:01:05]}  Bxf6 {[%clk 0:02:20]} 14. Qxf6 {[%clk 0:00:55]}  Nxc4 {[%clk 0:02:20]} 15. Ne4 {[%clk 0:00:45]}  Qa5+ {[%clk 0:02:10]} 16. Qc3 {[%clk 0:00:45]}  Qxc3+ {[%clk 0:02:03]} 17. bxc3 {[%clk 0:00:46]}  Bf5 {[%clk 0:02:00]} 18. Nd2 {[%clk 0:00:36]}  Nxd2 {[%clk 0:01:44]} 19. Kxd2 {[%clk 0:00:36]}  b5 {[%clk 0:01:45]} 20. e3 {[%clk 0:00:29]}  b4 {[%clk 0:01:40]} 21. cxb4 {[%clk 0:00:28]}  cxb4 {[%clk 0:01:41]} 22. a5 {[%clk 0:00:27]}  Be4 {[%clk 0:01:41]} 23. Ra4 {[%clk 0:00:20]}  Rfb8 {[%clk 0:01:33]} 24. f3 {[%clk 0:00:18]}  Bxd5 {[%clk 0:01:33]} 25. Bd3 {[%clk 0:00:18]}  Bc6 {[%clk 0:01:34]} 26. Raa1 {[%clk 0:00:18]}  Bb5 {[%clk 0:01:33]} 27. Rhb1 {[%clk 0:00:18]}  Bxd3 {[%clk 0:01:29]} 28. Kxd3 {[%clk 0:00:18]}  Rb5 {[%clk 0:01:30]} 29. Ra4 {[%clk 0:00:18]}  Rab8 {[%clk 0:01:29]} 30. Kc4 {[%clk 0:00:18]}  Rc5+ {[%clk 0:01:28]} 31. Kd3 {[%clk 0:00:18]}  b3 {[%clk 0:01:15]} 32. Ra3 {[%clk 0:00:15]}  Rcb5 {[%clk 0:01:13]} 33. Kc3 {[%clk 0:00:14]}  Rc8+ {[%clk 0:01:14]} 34. Kd3 {[%clk 0:00:14]}  b2 {[%clk 0:01:10]} 35. Ra2 {[%clk 0:00:14]}  Rcb8 {[%clk 0:01:08]} 36. Kc2 {[%clk 0:00:14]}  Rc5+ {[%clk 0:01:09]} 37. Kd2 {[%clk 0:00:15]}  Kf8 {[%clk 0:01:06]} 38. Rbxb2 {[%clk 0:00:14]}  Rxb2+ {[%clk 0:01:07]} 39. Rxb2 {[%clk 0:00:15]}  Rxa5 {[%clk 0:01:08]} 40. Rb7 {[%clk 0:00:13]}  Ra2+ {[%clk 0:01:07]} 41. Kd3 {[%clk 0:00:13]}  Rxg2 {[%clk 0:01:08]} 42. Rd7 {[%clk 0:00:13]}  Rxh2 {[%clk 0:01:08]} 43. Rxd6 {[%clk 0:00:14]}  Ra2 {[%clk 0:01:08]} 44. Ke4 {[%clk 0:00:13]}  Ra5 {[%clk 0:01:03]} 45. Rd7 {[%clk 0:00:12]}  h5 {[%clk 0:01:03]} 46. Kf4 {[%clk 0:00:13]}  Kg7 {[%clk 0:01:03]} 47. e4 {[%clk 0:00:13]}  h4 {[%clk 0:00:58]} 48. Kg4 {[%clk 0:00:12]}  Rh5 {[%clk 0:00:58]} 49. Kh3 {[%clk 0:00:13]}  a5 {[%clk 0:00:55]} 50. f4 {[%clk 0:00:10]}  Rb5 {[%clk 0:00:26]} 51. Kxh4 {[%clk 0:00:05]}  Rb4 {[%clk 0:00:26]} 52. Re7 {[%clk 0:00:05]}  Kf8 {[%clk 0:00:27]} 53. Re5 {[%clk 0:00:04]}  f6 {[%clk 0:00:27]} 54. Rxa5 {[%clk 0:00:04]}  Rxe4 {[%clk 0:00:28]} 55. Kg3 {[%clk 0:00:03]}  Kf7 {[%clk 0:00:29]} 56. Ra7+ {[%clk 0:00:04]}  Ke6 {[%clk 0:00:29]} 57. Ra6+ {[%clk 0:00:04]}  Kf5 {[%clk 0:00:29]} 58. Ra5+ {[%clk 0:00:04]}  Ke6 {[%clk 0:00:30]} 59. Ra6+ {[%clk 0:00:05]}  Kd7 {[%clk 0:00:31]} 60. Rxf6 {[%clk 0:00:05]}  Re1 {[%clk 0:00:28]} 61. Kf3 {[%clk 0:00:04]}  Rg1 {[%clk 0:00:28]} 62. Ra6 {[%clk 0:00:04]}  Ke7 {[%clk 0:00:29]} 63. Ra7+ {[%clk 0:00:04]}  Kf6 {[%clk 0:00:30]} 64. Ra6+ {[%clk 0:00:05]}  Kg7 {[%clk 0:00:30]} 65. Ra7+ {[%clk 0:00:05]}  Kh6 {[%clk 0:00:31]} 66. Ra6 {[%clk 0:00:06]}  Rf1+ {[%clk 0:00:31]} 67. Kg4 {[%clk 0:00:06]}  Rg1+ {[%clk 0:00:30]} 68. Kh4 {[%clk 0:00:05]}  Rf1 {[%clk 0:00:29]} 69. Kg4 {[%clk 0:00:05]}  Kg7 {[%clk 0:00:30]} 70. Ra7+ {[%clk 0:00:04]}  Kf6 {[%clk 0:00:31]} 71. Ra6+ {[%clk 0:00:05]}  Kf7 {[%clk 0:00:31]} 72. Ra7+ {[%clk 0:00:05]}  Kf6 {[%clk 0:00:30]} 73. Ra6+ {[%clk 0:00:05]}  Kg7 {[%clk 0:00:31]} 74. Ra7+ {[%clk 0:00:06]}  Kh6 {[%clk 0:00:31]} 75. Ra6 {[%clk 0:00:06]} 1/2-1/2


[Site "https://www.chess.com"]

[Event "Titled Tuesday Blitz June 6 Early 2023"]
[White "Begmuratov, Alisher"]
[Black "Mohammed, Zozek Salah Mohammed"]
[WhiteFideId "14203367"]
[BlackFideId "4803361"]
[WhiteElo "2387"]
[BlackElo "2211"]
[Result "1-0"]
[Round "2"]
[TimeControl "180+2"]
[Date "2023.06.06"]
[WhiteClock "0:02:29"]
[BlackClock "0:02:07"]
[Board "75"]

1. e4 {[%clk 0:03:00]}  e6 {[%clk 0:02:59]} 2. d4 {[%clk 0:02:59]}  d5 {[%clk 0:02:59]} 3. e5 {[%clk 0:02:58]}  c5 {[%clk 0:02:59]} 4. c3 {[%clk 0:02:58]}  Nc6 {[%clk 0:03:00]} 5. Nf3 {[%clk 0:02:58]}  Qb6 {[%clk 0:02:58]} 6. a3 {[%clk 0:02:58]}  Bd7 {[%clk 0:02:57]} 7. b4 {[%clk 0:02:58]}  cxd4 {[%clk 0:02:57]} 8. cxd4 {[%clk 0:02:58]}  Rc8 {[%clk 0:02:57]} 9. Bb2 {[%clk 0:02:58]}  a5 {[%clk 0:02:45]} 10. b5 {[%clk 0:02:56]}  Na7 {[%clk 0:02:41]} 11. a4 {[%clk 0:02:56]}  Bb4+ {[%clk 0:02:41]} 12. Nbd2 {[%clk 0:02:55]}  Ne7 {[%clk 0:02:40]} 13. Bd3 {[%clk 0:02:53]}  h6 {[%clk 0:02:33]} 14. O-O {[%clk 0:02:51]}  O-O {[%clk 0:02:34]} 15. Nb3 {[%clk 0:02:48]}  Rc7 {[%clk 0:02:24]} 16. Nc5 {[%clk 0:02:44]}  Bxc5 {[%clk 0:02:22]} 17. dxc5 {[%clk 0:02:44]}  Rxc5 {[%clk 0:02:16]} 18. Bd4 {[%clk 0:02:43]}  Qc7 {[%clk 0:02:11]} 19. Qb3 {[%clk 0:02:33]}  b6 {[%clk 0:02:07]} 20. Bxc5 {[%clk 0:02:32]}  Qxc5 {[%clk 0:02:07]} 21. Rfc1 {[%clk 0:02:29]} 1-0


[Site "https://www.chess.com"]

[Event "Titled Tuesday Blitz June 6 Early 2023"]
[White "Martinez Ramirez, Lennis"]
[Black "Fernandez Siles, Luis"]
[WhiteFideId "3509079"]
[BlackFideId "2209420"]
[WhiteElo "2410"]
[BlackElo "2195"]
[Result "1-0"]
[Round "2"]
[TimeControl "180+2"]
[Date "2023.06.06"]
[WhiteClock "0:00:17"]
[BlackClock "0:00:08"]
[Board "76"]

1. c4 {[%clk 0:02:53]}  Nf6 {[%clk 0:02:58]} 2. Nf3 {[%clk 0:02:53]}  g6 {[%clk 0:02:58]} 3. b4 {[%clk 0:02:53]}  Bg7 {[%clk 0:02:58]} 4. Bb2 {[%clk 0:02:53]}  O-O {[%clk 0:02:58]} 5. g3 {[%clk 0:02:54]}  d6 {[%clk 0:02:55]} 6. Bg2 {[%clk 0:02:54]}  e5 {[%clk 0:02:55]} 7. O-O {[%clk 0:02:54]}  Nc6 {[%clk 0:02:51]} 8. b5 {[%clk 0:02:51]}  Ne7 {[%clk 0:02:51]} 9. Nc3 {[%clk 0:02:43]}  Ne8 {[%clk 0:02:42]} 10. d4 {[%clk 0:02:38]}  Bd7 {[%clk 0:02:24]} 11. dxe5 {[%clk 0:02:18]}  dxe5 {[%clk 0:02:24]} 12. c5 {[%clk 0:02:18]}  Qc8 {[%clk 0:02:16]} 13. Rc1 {[%clk 0:01:45]}  Bh3 {[%clk 0:02:15]} 14. Ba3 {[%clk 0:01:33]}  c6 {[%clk 0:01:56]} 15. Bxh3 {[%clk 0:01:24]}  Qxh3 {[%clk 0:01:55]} 16. Ng5 {[%clk 0:01:25]}  Qf5 {[%clk 0:01:53]} 17. Nge4 {[%clk 0:01:25]}  Nd5 {[%clk 0:01:35]} 18. Nxd5 {[%clk 0:01:17]}  Qxe4 {[%clk 0:01:34]} 19. Ne7+ {[%clk 0:00:59]}  Kh8 {[%clk 0:01:33]} 20. bxc6 {[%clk 0:00:54]}  bxc6 {[%clk 0:01:27]} 21. Qd7 {[%clk 0:00:32]}  Nf6 {[%clk 0:01:03]} 22. Qxc6 {[%clk 0:00:31]}  Qxe2 {[%clk 0:01:03]} 23. Qa4 {[%clk 0:00:25]}  h5 {[%clk 0:00:57]} 24. c6 {[%clk 0:00:25]}  Rad8 {[%clk 0:00:31]} 25. c7 {[%clk 0:00:25]}  Rd4 {[%clk 0:00:32]} 26. Qxa7 {[%clk 0:00:18]}  h4 {[%clk 0:00:11]} 27. Nxg6+ {[%clk 0:00:18]}  fxg6 {[%clk 0:00:09]} 28. Bxf8 {[%clk 0:00:19]}  h3 {[%clk 0:00:10]} 29. Bxg7+ {[%clk 0:00:18]}  Kxg7 {[%clk 0:00:08]} 30. c8=Q+ {[%clk 0:00:17]}  Kh6 {[%clk 0:00:08]} 31. Qxh3+ {[%clk 0:00:17]} 1-0


[Site "https://www.chess.com"]

[Event "Titled Tuesday Blitz June 6 Early 2023"]
[White "Zenin, Dmitry"]
[Black "Ashraf, Artin"]
[WhiteFideId "4127897"]
[BlackFideId "22514805"]
[WhiteElo "2215"]
[BlackElo "2224"]
[Result "0-1"]
[Round "2"]
[TimeControl "180+2"]
[Date "2023.06.06"]
[WhiteClock "0:00:01"]
[BlackClock "0:00:04"]
[Board "77"]

1. d4 {[%clk 0:03:00]}  d5 {[%clk 0:02:51]} 2. c4 {[%clk 0:03:01]}  dxc4 {[%clk 0:02:52]} 3. e3 {[%clk 0:03:00]}  a6 {[%clk 0:02:41]} 4. Bxc4 {[%clk 0:03:00]}  e6 {[%clk 0:02:40]} 5. Nf3 {[%clk 0:02:59]}  Nf6 {[%clk 0:02:38]} 6. O-O {[%clk 0:02:59]}  Nbd7 {[%clk 0:02:35]} 7. Nc3 {[%clk 0:02:51]}  b5 {[%clk 0:02:32]} 8. Bd3 {[%clk 0:02:50]}  c5 {[%clk 0:02:32]} 9. dxc5 {[%clk 0:02:46]}  Bxc5 {[%clk 0:02:30]} 10. e4 {[%clk 0:02:46]}  Bb7 {[%clk 0:02:20]} 11. e5 {[%clk 0:02:46]}  Ng4 {[%clk 0:02:18]} 12. Ne4 {[%clk 0:02:30]}  Qb6 {[%clk 0:01:17]} 13. Nxc5 {[%clk 0:01:19]}  Qxc5 {[%clk 0:00:55]} 14. Bf4 {[%clk 0:01:04]}  Ngxe5 {[%clk 0:00:48]} 15. Be2 {[%clk 0:00:41]}  Nxf3+ {[%clk 0:00:06]} 16. Bxf3 {[%clk 0:00:40]}  Qb6 {[%clk 0:00:05]} 17. Rc1 {[%clk 0:00:36]}  Bxf3 {[%clk 0:00:03]} 18. Qxf3 {[%clk 0:00:36]}  O-O {[%clk 0:00:03]} 19. Rfd1 {[%clk 0:00:33]}  Nf6 {[%clk 0:00:03]} 20. Be5 {[%clk 0:00:28]}  Nd5 {[%clk 0:00:03]} 21. Qg3 {[%clk 0:00:27]}  f6 {[%clk 0:00:03]} 22. Bd4 {[%clk 0:00:27]}  Qb7 {[%clk 0:00:03]} 23. Qf3 {[%clk 0:00:22]}  Rac8 {[%clk 0:00:03]} 24. a3 {[%clk 0:00:21]}  Rc4 {[%clk 0:00:02]} 25. Rxc4 {[%clk 0:00:20]}  bxc4 {[%clk 0:00:03]} 26. h4 {[%clk 0:00:20]}  Rc8 {[%clk 0:00:04]} 27. Qe4 {[%clk 0:00:16]}  Qf7 {[%clk 0:00:02]} 28. Re1 {[%clk 0:00:13]}  e5 {[%clk 0:00:02]} 29. Bc3 {[%clk 0:00:12]}  Nf4 {[%clk 0:00:03]} 30. g3 {[%clk 0:00:07]}  Nd3 {[%clk 0:00:03]} 31. Rd1 {[%clk 0:00:07]}  h5 {[%clk 0:00:04]} 32. Rd2 {[%clk 0:00:07]}  Nc5 {[%clk 0:00:04]} 33. Qe3 {[%clk 0:00:06]}  Nd3 {[%clk 0:00:04]} 34. Qe4 {[%clk 0:00:06]}  Qe6 {[%clk 0:00:04]} 35. Qf3 {[%clk 0:00:06]}  Qc6 {[%clk 0:00:04]} 36. Qxh5 {[%clk 0:00:05]}  Ne1 {[%clk 0:00:04]} 37. Kf1 {[%clk 0:00:04]}  Nf3 {[%clk 0:00:04]} 38. Re2 {[%clk 0:00:03]}  Nh2+ {[%clk 0:00:04]} 39. Ke1 {[%clk 0:00:03]}  Nf3+ {[%clk 0:00:04]} 40. Kd1 {[%clk 0:00:03]}  Rd8+ {[%clk 0:00:03]} 41. Kc1 {[%clk 0:00:03]}  Qa4 {[%clk 0:00:03]} 42. Rd2 {[%clk 0:00:03]}  Nxd2 {[%clk 0:00:03]} 43. Bxd2 {[%clk 0:00:03]}  Qd7 {[%clk 0:00:03]} 44. Qe2 {[%clk 0:00:02]}  Qd3 {[%clk 0:00:03]} 45. Qe1 {[%clk 0:00:02]}  Qb3 {[%clk 0:00:03]} 46. Bc3 {[%clk 0:00:01]}  Qa2 {[%clk 0:00:03]} 47. Kc2 {[%clk 0:00:01]}  Qb3+ {[%clk 0:00:03]} 48. Kc1 {[%clk 0:00:01]}  Qb7 {[%clk 0:00:03]} 49. Kc2 {[%clk 0:00:01]}  Rd3 {[%clk 0:00:04]} 50. Qe2 {[%clk 0:00:02]}  Qd7 {[%clk 0:00:04]} 51. Kc1 {[%clk 0:00:02]}  Qd5 {[%clk 0:00:04]} 52. Kc2 {[%clk 0:00:02]}  Qh1 {[%clk 0:00:04]} 53. Qg4 {[%clk 0:00:01]}  Qf3 {[%clk 0:00:04]} 54. Qc8+ {[%clk 0:00:01]}  Kh7 {[%clk 0:00:04]} 0-1


[Site "https://www.chess.com"]

[Event "Titled Tuesday Blitz June 6 Early 2023"]
[White "Nikologorsky, Matfei"]
[Black "Domingo Nunez, Ruben"]
[WhiteFideId "24102474"]
[BlackFideId "22245570"]
[WhiteElo "2153"]
[BlackElo "2404"]
[Result "1-0"]
[Round "2"]
[TimeControl "180+2"]
[Date "2023.06.06"]
[WhiteClock "0:02:10"]
[BlackClock "0:02:43"]
[Board "79"]

1. e4 {[%clk 0:03:00]}  g6 {[%clk 0:02:59]} 2. d4 {[%clk 0:03:00]}  Bg7 {[%clk 0:03:00]} 3. h4 {[%clk 0:02:59]}  d5 {[%clk 0:03:00]} 4. e5 {[%clk 0:02:57]}  c5 {[%clk 0:03:00]} 5. c3 {[%clk 0:02:56]}  cxd4 {[%clk 0:03:00]} 6. cxd4 {[%clk 0:02:57]}  Nc6 {[%clk 0:02:59]} 7. h5 {[%clk 0:02:56]}  Qb6 {[%clk 0:02:59]} 8. h6 {[%clk 0:02:50]}  Bf8 {[%clk 0:02:59]} 9. Ne2 {[%clk 0:02:29]}  Bf5 {[%clk 0:02:53]} 10. Nbc3 {[%clk 0:02:26]}  Nb4 {[%clk 0:02:52]} 11. Qa4+ {[%clk 0:02:24]}  Qc6 {[%clk 0:02:51]} 12. Qxb4 {[%clk 0:02:14]}  f6 {[%clk 0:02:44]} 13. Ng3 {[%clk 0:02:11]}  Be6 {[%clk 0:02:43]} 14. Bb5 {[%clk 0:02:10]} 1-0


[Site "https://www.chess.com"]

[Event "Titled Tuesday Blitz June 6 Early 2023"]
[White "Souleidis, Georgios"]
[Black "Da Silva, Lindolfo Luiz"]
[WhiteFideId "4206827"]
[BlackFideId "2106558"]
[WhiteElo "2401"]
[BlackElo "2362"]
[Result "1-0"]
[Round "2"]
[TimeControl "180+2"]
[Date "2023.06.06"]
[WhiteClock "0:00:25"]
[BlackClock "0:00:18"]
[Board "80"]

1. e4 {[%clk 0:02:57]}  c5 {[%clk 0:02:59]} 2. Be2 {[%clk 0:02:56]}  Nc6 {[%clk 0:03:00]} 3. d3 {[%clk 0:02:56]}  g6 {[%clk 0:02:59]} 4. f4 {[%clk 0:02:57]}  Bg7 {[%clk 0:02:59]} 5. Nf3 {[%clk 0:02:58]}  e6 {[%clk 0:03:00]} 6. O-O {[%clk 0:02:59]}  Nge7 {[%clk 0:03:00]} 7. c3 {[%clk 0:02:59]}  O-O {[%clk 0:03:01]} 8. Be3 {[%clk 0:02:59]}  d6 {[%clk 0:03:00]} 9. d4 {[%clk 0:03:00]}  cxd4 {[%clk 0:02:59]} 10. cxd4 {[%clk 0:03:00]}  d5 {[%clk 0:03:00]} 11. e5 {[%clk 0:03:01]}  Nf5 {[%clk 0:02:54]} 12. Bf2 {[%clk 0:03:01]}  h5 {[%clk 0:02:54]} 13. Qd2 {[%clk 0:03:02]}  Bd7 {[%clk 0:02:53]} 14. Nc3 {[%clk 0:03:02]}  a6 {[%clk 0:02:48]} 15. Rac1 {[%clk 0:03:02]}  b5 {[%clk 0:02:49]} 16. b3 {[%clk 0:03:00]}  Qb6 {[%clk 0:02:49]} 17. g3 {[%clk 0:02:56]}  Rfc8 {[%clk 0:02:38]} 18. h3 {[%clk 0:02:56]}  Nh6 {[%clk 0:02:05]} 19. Nh2 {[%clk 0:02:46]}  f6 {[%clk 0:02:00]} 20. g4 {[%clk 0:02:41]}  hxg4 {[%clk 0:01:57]} 21. hxg4 {[%clk 0:02:41]}  f5 {[%clk 0:01:53]} 22. g5 {[%clk 0:02:35]}  Nf7 {[%clk 0:01:42]} 23. Nf3 {[%clk 0:02:35]}  Kf8 {[%clk 0:01:01]} 24. Kg2 {[%clk 0:02:32]}  Nh8 {[%clk 0:01:01]} 25. Rh1 {[%clk 0:02:31]}  Kf7 {[%clk 0:01:01]} 26. Rh7 {[%clk 0:02:27]}  Rg8 {[%clk 0:01:00]} 27. Rch1 {[%clk 0:02:22]}  Be8 {[%clk 0:01:00]} 28. Nd1 {[%clk 0:02:19]}  Nb8 {[%clk 0:00:57]} 29. Nb2 {[%clk 0:02:19]}  Nd7 {[%clk 0:00:57]} 30. Nd3 {[%clk 0:02:19]}  Rc8 {[%clk 0:00:58]} 31. Nc5 {[%clk 0:02:00]}  Nf8 {[%clk 0:00:56]} 32. R7h2 {[%clk 0:01:57]}  Nd7 {[%clk 0:00:57]} 33. Be3 {[%clk 0:01:53]}  Kf8 {[%clk 0:00:48]} 34. Rc1 {[%clk 0:01:53]}  Nf7 {[%clk 0:00:47]} 35. Nxe6+ {[%clk 0:01:38]}  Qxe6 {[%clk 0:00:45]} 36. Rxc8 {[%clk 0:01:39]}  Ke7 {[%clk 0:00:29]} 37. Rc2 {[%clk 0:01:33]}  Nd8 {[%clk 0:00:28]} 38. Ne1 {[%clk 0:01:28]}  Bf8 {[%clk 0:00:28]} 39. Rh7+ {[%clk 0:01:23]}  Rg7 {[%clk 0:00:28]} 40. Rxg7+ {[%clk 0:01:22]}  Bxg7 {[%clk 0:00:29]} 41. Nd3 {[%clk 0:01:22]}  Bf8 {[%clk 0:00:28]} 42. Nc5 {[%clk 0:01:20]}  Nxc5 {[%clk 0:00:28]} 43. Rxc5 {[%clk 0:01:20]}  Kf7 {[%clk 0:00:28]} 44. Rc7+ {[%clk 0:01:18]}  Kg8 {[%clk 0:00:27]} 45. Qc1 {[%clk 0:01:12]}  Nc6 {[%clk 0:00:26]} 46. Bf3 {[%clk 0:01:04]}  Bb4 {[%clk 0:00:25]} 47. Kg3 {[%clk 0:00:47]}  Ba5 {[%clk 0:00:25]} 48. Rb7 {[%clk 0:00:34]}  Nb4 {[%clk 0:00:20]} 49. a3 {[%clk 0:00:26]}  Nc6 {[%clk 0:00:18]} 50. b4 {[%clk 0:00:25]}  Bd8 {[%clk 0:00:18]} 51. Qh1 {[%clk 0:00:25]}  Be7 {[%clk 0:00:18]} 52. Bxd5 {[%clk 0:00:25]} 1-0


[Site "https://www.chess.com"]

[Event "Titled Tuesday Blitz June 6 Early 2023"]
[White "Rosenberg, Evan S"]
[Black "Korchmar, Vasiliy"]
[WhiteFideId "2019299"]
[BlackFideId "24131750"]
[WhiteElo "2342"]
[BlackElo "2370"]
[Result "0-1"]
[Round "2"]
[TimeControl "180+2"]
[Date "2023.06.06"]
[WhiteClock "0:00:06"]
[BlackClock "0:00:21"]
[Board "81"]

1. d4 {[%clk 0:03:00]}  d5 {[%clk 0:02:59]} 2. Nf3 {[%clk 0:03:00]}  Nf6 {[%clk 0:02:59]} 3. Bg5 {[%clk 0:03:00]}  Ne4 {[%clk 0:02:58]} 4. Bh4 {[%clk 0:03:00]}  f6 {[%clk 0:02:56]} 5. Nc3 {[%clk 0:02:45]}  h5 {[%clk 0:02:55]} 6. Bg3 {[%clk 0:02:18]}  g5 {[%clk 0:02:54]} 7. h4 {[%clk 0:02:04]}  Nxg3 {[%clk 0:02:54]} 8. fxg3 {[%clk 0:02:04]}  g4 {[%clk 0:02:55]} 9. Nd2 {[%clk 0:01:55]}  Qd6 {[%clk 0:02:55]} 10. Kf2 {[%clk 0:01:51]}  e5 {[%clk 0:02:55]} 11. e3 {[%clk 0:01:49]}  Nc6 {[%clk 0:02:26]} 12. Bb5 {[%clk 0:01:46]}  Bd7 {[%clk 0:02:25]} 13. Bxc6 {[%clk 0:01:46]}  Bxc6 {[%clk 0:02:25]} 14. Rf1 {[%clk 0:01:43]}  Bh6 {[%clk 0:02:23]} 15. Qe2 {[%clk 0:01:41]}  O-O-O {[%clk 0:02:22]} 16. Kg1 {[%clk 0:01:41]}  Rde8 {[%clk 0:02:23]} 17. Qd3 {[%clk 0:01:29]}  exd4 {[%clk 0:02:21]} 18. exd4 {[%clk 0:01:27]}  Bxd2 {[%clk 0:01:30]} 19. Qxd2 {[%clk 0:01:26]}  Qxg3 {[%clk 0:01:31]} 20. Rxf6 {[%clk 0:01:16]}  Qxh4 {[%clk 0:01:29]} 21. Qf4 {[%clk 0:00:58]}  Rh7 {[%clk 0:00:40]} 22. Rf1 {[%clk 0:00:56]}  Rhe7 {[%clk 0:00:38]} 23. Qf5+ {[%clk 0:00:35]}  Kb8 {[%clk 0:00:35]} 24. Rf8 {[%clk 0:00:21]}  g3 {[%clk 0:00:28]} 25. Rxe8+ {[%clk 0:00:20]}  Rxe8 {[%clk 0:00:29]} 26. Qh3 {[%clk 0:00:20]}  Qxd4+ {[%clk 0:00:29]} 27. Kh1 {[%clk 0:00:20]}  h4 {[%clk 0:00:27]} 28. Qf5 {[%clk 0:00:13]}  a6 {[%clk 0:00:23]} 29. a3 {[%clk 0:00:12]}  Qd2 {[%clk 0:00:22]} 30. Qf6 {[%clk 0:00:07]}  d4 {[%clk 0:00:21]} 31. Nb1 {[%clk 0:00:06]}  Qxg2# {[%clk 0:00:21]} 0-1


[Site "https://www.chess.com"]

[Event "Titled Tuesday Blitz June 6 Early 2023"]
[White "Bodi, Tibor"]
[Black "Li, Hui"]
[WhiteFideId "701084"]
[BlackFideId "15400310"]
[WhiteElo "2187"]
[BlackElo "1966"]
[Result "1-0"]
[Round "2"]
[TimeControl "180+2"]
[Date "2023.06.06"]
[WhiteClock "0:00:39"]
[BlackClock "0:00:03"]
[Board "82"]

1. e4 {[%clk 0:03:00]}  e5 {[%clk 0:02:59]} 2. Nf3 {[%clk 0:02:59]}  Nf6 {[%clk 0:03:00]} 3. d4 {[%clk 0:02:58]}  exd4 {[%clk 0:03:00]} 4. e5 {[%clk 0:02:58]}  Ne4 {[%clk 0:03:01]} 5. Qxd4 {[%clk 0:02:57]}  d5 {[%clk 0:03:01]} 6. exd6 {[%clk 0:02:39]}  Nxd6 {[%clk 0:03:00]} 7. Bg5 {[%clk 0:02:34]}  f6 {[%clk 0:02:59]} 8. Be3 {[%clk 0:02:29]}  Nc6 {[%clk 0:02:59]} 9. Qd2 {[%clk 0:02:21]}  Qe7 {[%clk 0:02:26]} 10. Nc3 {[%clk 0:02:20]}  Be6 {[%clk 0:02:23]} 11. Nb5 {[%clk 0:02:13]}  O-O-O {[%clk 0:02:13]} 12. Nbd4 {[%clk 0:02:07]}  Bd7 {[%clk 0:01:56]} 13. O-O-O {[%clk 0:02:04]}  Qf7 {[%clk 0:01:40]} 14. Kb1 {[%clk 0:02:01]}  Be7 {[%clk 0:01:35]} 15. Qc3 {[%clk 0:01:54]}  Kb8 {[%clk 0:01:31]} 16. Bd3 {[%clk 0:01:37]}  Qh5 {[%clk 0:01:18]} 17. Qa3 {[%clk 0:01:35]}  Nc8 {[%clk 0:01:06]} 18. Qb3 {[%clk 0:01:25]}  Nb6 {[%clk 0:00:55]} 19. Rhe1 {[%clk 0:01:25]}  Rhe8 {[%clk 0:00:49]} 20. Bf4 {[%clk 0:01:17]}  Bc5 {[%clk 0:00:36]} 21. Nb5 {[%clk 0:01:12]}  Rc8 {[%clk 0:00:29]} 22. Rxe8 {[%clk 0:01:06]}  Bxe8 {[%clk 0:00:28]} 23. Qg8 {[%clk 0:00:50]}  Bg6 {[%clk 0:00:08]} 24. Qxg7 {[%clk 0:00:41]}  Bxd3 {[%clk 0:00:08]} 25. Rxd3 {[%clk 0:00:42]}  Bxf2 {[%clk 0:00:02]} 26. Nxc7 {[%clk 0:00:42]}  Ne5 {[%clk 0:00:02]} 27. Nxe5 {[%clk 0:00:38]}  fxe5 {[%clk 0:00:03]} 28. Qxe5 {[%clk 0:00:39]}  Qxe5 {[%clk 0:00:03]} 29. Bxe5 {[%clk 0:00:39]} 1-0


[Site "https://www.chess.com"]